[Event "GrandPrix_30.05"]
[Site "Chess.com"]
[Date "2020.05.30"]
[Round "7"]
[White "Haapana"]
[Black "Chessbuster123"]
[Result "1-0"]
[WhiteElo "2338"]
[BlackElo "1936"]
[TimeControl "600+2"]
[EndTime "11:26:11 PDT"]
[Termination "Haapana won by resignation"]

1. d4 {[%clk 0:10:01.9]} 1... Nf6 {[%clk 0:10:00.6]} 2. c4 {[%clk 0:10:02.8]}
2... e6 {[%clk 0:10:01.8]} 3. Nf3 {[%clk 0:10:02.5]} 3... b6 {[%clk 0:10:02.2]}
4. g3 {[%clk 0:10:03.2]} 4... Ba6 {[%clk 0:09:59.6]} 5. Nbd2 {[%clk 0:10:02.6]}
5... Bb4 {[%clk 0:09:52.9]} 6. Qc2 {[%clk 0:09:59.9]} 6... O-O {[%clk
0:09:48.6]} 7. Bg2 {[%clk 0:10:00.2]} 7... d5 {[%clk 0:09:49.2]} 8. Ne5 {[%clk
0:09:57]} 8... c5 {[%clk 0:09:44.9]} 9. dxc5 {[%clk 0:09:48]} 9... bxc5 {[%clk
0:09:06.9]} 10. O-O {[%clk 0:09:39.8]} 10... Nfd7 {[%clk 0:08:57.4]} 11. Ndf3
{[%clk 0:08:42]} 11... Nxe5 {[%clk 0:08:24.7]} 12. Nxe5 {[%clk 0:08:41.1]} 12...
f6 {[%clk 0:08:22.7]} 13. cxd5 {[%clk 0:08:03.3]} 13... exd5 {[%clk 0:07:34.1]}
14. Nd3 {[%clk 0:06:26.6]} 14... Kh8 {[%clk 0:05:28.1]} 15. a3 {[%clk
0:05:38.2]} 15... Ba5 {[%clk 0:05:24.1]} 16. Nxc5 {[%clk 0:05:14.1]} 16... Bb6
{[%clk 0:05:13.3]} 17. Ne6 {[%clk 0:03:42]} 17... Qc8 {[%clk 0:05:12.1]} 18.
Qxc8 {[%clk 0:03:39.6]} 18... Rxc8 {[%clk 0:05:14]} 19. Bxd5 {[%clk 0:03:39.8]}
19... Nc6 {[%clk 0:05:14.3]} 20. Bf4 {[%clk 0:02:59.8]} 20... Bb7 {[%clk
0:04:27.4]} 21. Rfd1 {[%clk 0:02:22.5]} 21... a5 {[%clk 0:04:17.1]} 22. Rac1
{[%clk 0:02:10]} 22... a4 {[%clk 0:04:15.5]} 23. Nc5 {[%clk 0:01:53.6]} 23...
Bxc5 {[%clk 0:03:27.8]} 24. Rxc5 {[%clk 0:01:55.5]} 24... Na5 {[%clk 0:03:26.7]}
25. Rxa5 {[%clk 0:01:47.1]} 25... Rxa5 {[%clk 0:03:22.8]} 26. Bxb7 {[%clk
0:01:47.7]} 26... Rf8 {[%clk 0:03:19.8]} 27. Rd7 {[%clk 0:01:41.7]} 27... Rb5
{[%clk 0:03:17.3]} 28. Bd6 {[%clk 0:01:39.3]} 28... Rg8 {[%clk 0:03:13.2]} 29.
Bb4 {[%clk 0:01:38.7]} 29... Rb6 {[%clk 0:03:03.9]} 30. e3 {[%clk 0:01:31]}
30... h5 {[%clk 0:03:03.4]} 31. h4 {[%clk 0:01:30.9]} 31... Kh7 {[%clk
0:03:01.4]} 32. Be4+ {[%clk 0:01:30]} 32... Kh6 {[%clk 0:03:02.5]} 33. Bc2
{[%clk 0:01:29.2]} 33... Ra8 {[%clk 0:02:54.7]} 34. Rc7 {[%clk 0:01:24.8]} 34...
Raa6 {[%clk 0:02:46.5]} 35. Rc4 {[%clk 0:01:20.6]} 35... Ra8 {[%clk 0:02:41.6]}
36. Bc3 {[%clk 0:01:19.8]} 36... Rba6 {[%clk 0:02:35.5]} 37. Kg2 {[%clk
0:01:20.7]} 37... g6 {[%clk 0:02:34.8]} 38. f3 {[%clk 0:01:20.8]} 38... R8a7
{[%clk 0:02:33.6]} 39. e4 {[%clk 0:01:19.2]} 39... Kg7 {[%clk 0:02:33]} 40. f4
{[%clk 0:01:19.1]} 40... Kf7 {[%clk 0:02:27.2]} 41. Kf3 {[%clk 0:01:20.2]} 41...
Ke6 {[%clk 0:02:26.1]} 42. Ke3 {[%clk 0:01:13.8]} 42... Kf7 {[%clk 0:02:16.8]}
43. Bd4 {[%clk 0:01:12.6]} 43... Ra8 {[%clk 0:02:09.6]} 44. Rc7+ {[%clk
0:01:13]} 44... Ke6 {[%clk 0:02:04.9]} 45. Bd3 {[%clk 0:01:13.8]} 45... Ra5
{[%clk 0:01:59.2]} 46. Bc4+ {[%clk 0:01:14.1]} 46... Kd6 {[%clk 0:01:59.9]} 47.
Rf7 {[%clk 0:01:14.6]} 1-0

[Event "GrandPrix_30.05"]
[Site "Chess.com"]
[Date "2020.05.30"]
[Round "7"]
[White "Tesla37"]
[Black "Micki-taryan"]
[Result "1-0"]
[WhiteElo "2762"]
[BlackElo "2509"]
[TimeControl "600+2"]
[EndTime "11:26:15 PDT"]
[Termination "Tesla37 won by resignation"]

1. e4 {[%clk 0:10:01.9]} 1... e5 {[%clk 0:09:58.1]} 2. Nf3 {[%clk 0:10:01.8]}
2... Nc6 {[%clk 0:09:58.3]} 3. g3 {[%clk 0:10:02.6]} 3... Nf6 {[%clk 0:09:53.3]}
4. d3 {[%clk 0:10:02.6]} 4... g6 {[%clk 0:09:39.4]} 5. Bg2 {[%clk 0:10:01.7]}
5... Bg7 {[%clk 0:09:41]} 6. O-O {[%clk 0:10:02.4]} 6... d5 {[%clk 0:09:37.3]}
7. exd5 {[%clk 0:09:56.8]} 7... Nxd5 {[%clk 0:09:39.2]} 8. Re1 {[%clk
0:09:50.2]} 8... O-O {[%clk 0:09:34.5]} 9. Bg5 {[%clk 0:09:40.2]} 9... f6 {[%clk
0:09:22.8]} 10. Bd2 {[%clk 0:09:39.1]} 10... Nde7 {[%clk 0:09:11.1]} 11. Nc3
{[%clk 0:09:33.7]} 11... Bg4 {[%clk 0:08:55.1]} 12. h3 {[%clk 0:09:28.9]} 12...
Be6 {[%clk 0:08:55.6]} 13. Ne4 {[%clk 0:09:29.2]} 13... b6 {[%clk 0:08:55.1]}
14. Kh2 {[%clk 0:08:56.8]} 14... Qd7 {[%clk 0:08:41.5]} 15. Qc1 {[%clk
0:08:36.6]} 15... Nf5 {[%clk 0:08:16.2]} 16. b4 {[%clk 0:08:19.4]} 16... a5
{[%clk 0:08:05.6]} 17. a3 {[%clk 0:07:13.5]} 17... axb4 {[%clk 0:07:44.5]} 18.
axb4 {[%clk 0:07:13.7]} 18... Rxa1 {[%clk 0:07:45.3]} 19. Qxa1 {[%clk
0:07:14.4]} 19... Ncd4 {[%clk 0:07:40.7]} 20. Nxd4 {[%clk 0:07:08]} 20... Nxd4
{[%clk 0:07:39.8]} 21. Qd1 {[%clk 0:06:34]} 21... Bd5 {[%clk 0:06:32.5]} 22. c3
{[%clk 0:05:39.2]} 22... Ne6 {[%clk 0:06:32.7]} 23. Qf3 {[%clk 0:05:08.4]} 23...
c6 {[%clk 0:05:51.7]} 24. c4 {[%clk 0:04:38.3]} 24... Nd4 {[%clk 0:05:50.8]} 25.
Qd1 {[%clk 0:04:38.8]} 25... Be6 {[%clk 0:05:36]} 26. Be3 {[%clk 0:04:35.9]}
26... Rd8 {[%clk 0:05:18.6]} 27. c5 {[%clk 0:04:12]} 27... b5 {[%clk 0:05:19.7]}
28. f4 {[%clk 0:03:17.5]} 28... Bb3 {[%clk 0:04:10.8]} 29. Qb1 {[%clk
0:03:15.9]} 29... Be6 {[%clk 0:03:31.4]} 30. fxe5 {[%clk 0:03:12.3]} 30... fxe5
{[%clk 0:03:33.3]} 31. Rf1 {[%clk 0:02:45.4]} 31... Nf5 {[%clk 0:02:54.2]} 32.
Bg5 {[%clk 0:02:45.2]} 32... Rf8 {[%clk 0:02:55.3]} 33. g4 {[%clk 0:02:40.7]}
33... h6 {[%clk 0:02:26.5]} 34. Bd2 {[%clk 0:02:19.5]} 34... Nh4 {[%clk
0:02:21.9]} 35. Rxf8+ {[%clk 0:02:12.8]} 35... Kxf8 {[%clk 0:02:23.8]} 36. Qf1+
{[%clk 0:02:11.3]} 36... Ke7 {[%clk 0:01:11.9]} 37. Bxh6 {[%clk 0:02:01.9]}
37... Bxh6 {[%clk 0:01:07.3]} 38. Qf6+ {[%clk 0:02:01.7]} 38... Ke8 {[%clk
0:01:08.6]} 39. Qh8+ {[%clk 0:02:01.8]} 39... Ke7 {[%clk 0:00:57.5]} 40. Qf6+
{[%clk 0:01:56.5]} 40... Ke8 {[%clk 0:00:58]} 41. Nd6+ {[%clk 0:01:51.4]} 41...
Qxd6 {[%clk 0:00:58.8]} 42. cxd6 {[%clk 0:01:51.7]} 42... Bf4+ {[%clk
0:01:00.4]} 43. Kh1 {[%clk 0:01:52.1]} 1-0

[Event "GrandPrix_30.05"]
[Site "Chess.com"]
[Date "2020.05.30"]
[Round "7"]
[White "Mesropov_Konstantin"]
[Black "Korchmar_Vasiliy"]
[Result "0-1"]
[WhiteElo "2229"]
[BlackElo "2141"]
[TimeControl "600+2"]
[EndTime "11:26:16 PDT"]
[Termination "Korchmar_Vasiliy won by resignation"]

1. d4 {[%clk 0:10:01.9]} 1... Nf6 {[%clk 0:10:00.5]} 2. Bg5 {[%clk 0:10:02.2]}
2... c5 {[%clk 0:09:53.1]} 3. Bxf6 {[%clk 0:10:02]} 3... gxf6 {[%clk 0:09:52.6]}
4. d5 {[%clk 0:10:02.9]} 4... Qb6 {[%clk 0:09:50.1]} 5. Qc1 {[%clk 0:10:03.7]}
5... f5 {[%clk 0:09:40.9]} 6. c4 {[%clk 0:10:03.7]} 6... d6 {[%clk 0:09:41.8]}
7. Nc3 {[%clk 0:10:03.6]} 7... Nd7 {[%clk 0:09:41.4]} 8. Qc2 {[%clk 0:09:56.3]}
8... Nf6 {[%clk 0:09:39.3]} 9. e3 {[%clk 0:09:51.1]} 9... Bd7 {[%clk 0:09:36]}
10. Bd3 {[%clk 0:09:48]} 10... Rg8 {[%clk 0:09:25.3]} 11. g3 {[%clk 0:09:21.7]}
11... e6 {[%clk 0:09:25.6]} 12. Nge2 {[%clk 0:08:58.9]} 12... h5 {[%clk
0:09:13.4]} 13. a3 {[%clk 0:08:10.4]} 13... Bh6 {[%clk 0:08:17.4]} 14. Rb1
{[%clk 0:07:53.6]} 14... a5 {[%clk 0:08:09.4]} 15. e4 {[%clk 0:07:27.7]} 15...
fxe4 {[%clk 0:07:08.2]} 16. Nxe4 {[%clk 0:07:27]} 16... Nxe4 {[%clk 0:07:09]}
17. Bxe4 {[%clk 0:07:27.3]} 17... h4 {[%clk 0:06:54]} 18. Nc3 {[%clk 0:07:07.3]}
18... O-O-O {[%clk 0:06:46.2]} 19. O-O {[%clk 0:06:52.5]} 19... hxg3 {[%clk
0:06:44.9]} 20. hxg3 {[%clk 0:06:48.6]} 20... Bf4 {[%clk 0:06:27.2]} 21. Na4
{[%clk 0:05:37.8]} 21... Bxa4 {[%clk 0:03:51.8]} 22. Qxa4 {[%clk 0:05:36.5]}
22... Rg7 {[%clk 0:03:52.5]} 23. dxe6 {[%clk 0:05:26.9]} 23... fxe6 {[%clk
0:03:52.5]} 24. Rbd1 {[%clk 0:04:08.6]} 24... Rdg8 {[%clk 0:03:05.3]} 25. Qc2
{[%clk 0:02:30]} 25... Be5 {[%clk 0:02:26.5]} 26. b3 {[%clk 0:02:24.6]} 26...
Qc7 {[%clk 0:02:12.3]} 27. Rd3 {[%clk 0:01:36.3]} 27... Qe7 {[%clk 0:02:02.2]}
28. Kg2 {[%clk 0:01:18.8]} 28... Qh4 {[%clk 0:02:01.6]} 29. Rf3 {[%clk
0:01:11.1]} 29... Bxg3 {[%clk 0:01:29.3]} 30. Rh1 {[%clk 0:00:32.1]} 30... Bxf2+
{[%clk 0:01:25.1]} 0-1

[Event "GrandPrix_30.05"]
[Site "Chess.com"]
[Date "2020.05.30"]
[Round "7"]
[White "arminmusovic"]
[Black "temus_galaktionov"]
[Result "0-1"]
[WhiteElo "2299"]
[BlackElo "2573"]
[TimeControl "600+2"]
[EndTime "11:26:39 PDT"]
[Termination "temus_galaktionov won on time"]

1. a3 {[%clk 0:10:01.9]} 1... c6 {[%clk 0:10:01.9]} 2. Nc3 {[%clk 0:10:01.7]}
2... g6 {[%clk 0:10:03.8]} 3. e4 {[%clk 0:10:03.3]} 3... Bg7 {[%clk 0:10:05.1]}
4. d4 {[%clk 0:10:04.9]} 4... d6 {[%clk 0:10:06.9]} 5. Bg5 {[%clk 0:10:05.9]}
5... Nd7 {[%clk 0:10:08]} 6. f4 {[%clk 0:10:06.6]} 6... Qb6 {[%clk 0:10:05.4]}
7. Nf3 {[%clk 0:10:08]} 7... e5 {[%clk 0:09:56.5]} 8. fxe5 {[%clk 0:09:59.2]}
8... dxe5 {[%clk 0:09:58.4]} 9. d5 {[%clk 0:10:00.6]} 9... h6 {[%clk 0:09:53.6]}
10. Bh4 {[%clk 0:09:59.5]} 10... Ngf6 {[%clk 0:09:38.4]} 11. Bf2 {[%clk
0:09:47.8]} 11... Qc7 {[%clk 0:09:38.8]} 12. Bc4 {[%clk 0:09:01.8]} 12... cxd5
{[%clk 0:09:28.7]} 13. Nb5 {[%clk 0:08:55.1]} 13... Qb8 {[%clk 0:09:10]} 14.
Bxd5 {[%clk 0:08:44.7]} 14... O-O {[%clk 0:09:03.3]} 15. O-O {[%clk 0:08:28]}
15... a6 {[%clk 0:09:03.9]} 16. Nc3 {[%clk 0:07:26.7]} 16... Ng4 {[%clk
0:09:03.6]} 17. Kh1 {[%clk 0:07:16.7]} 17... Nxf2+ {[%clk 0:09:01.8]} 18. Rxf2
{[%clk 0:07:18.6]} 18... Nf6 {[%clk 0:09:00.9]} 19. Rd2 {[%clk 0:07:07.6]} 19...
Qc7 {[%clk 0:08:50.8]} 20. Qe1 {[%clk 0:06:30.8]} 20... Rb8 {[%clk 0:08:04.4]}
21. Bb3 {[%clk 0:06:07.4]} 21... b5 {[%clk 0:07:32.7]} 22. Qg3 {[%clk
0:05:37.7]} 22... Kh7 {[%clk 0:07:11.3]} 23. Rad1 {[%clk 0:04:40.4]} 23... a5
{[%clk 0:06:44.8]} 24. Nd5 {[%clk 0:04:22.3]} 24... Nxd5 {[%clk 0:06:43.1]} 25.
Bxd5 {[%clk 0:04:16.6]} 25... b4 {[%clk 0:06:37.5]} 26. axb4 {[%clk 0:04:06.1]}
26... axb4 {[%clk 0:06:39.4]} 27. Qh4 {[%clk 0:04:07.5]} 27... Kg8 {[%clk
0:06:27.4]} 28. Bb3 {[%clk 0:04:06.8]} 28... Qc5 {[%clk 0:05:58.7]} 29. Rd6
{[%clk 0:03:57.9]} 29... Rb6 {[%clk 0:05:53.6]} 30. R6d5 {[%clk 0:03:47.6]}
30... Qc7 {[%clk 0:05:52.2]} 31. Rd8 {[%clk 0:03:26.8]} 31... Be6 {[%clk
0:05:44]} 32. Rxf8+ {[%clk 0:03:26.8]} 32... Bxf8 {[%clk 0:05:45.1]} 33. Bxe6
{[%clk 0:02:04.4]} 33... Rxe6 {[%clk 0:05:47]} 34. Qf2 {[%clk 0:02:05.6]} 34...
Rc6 {[%clk 0:05:34]} 35. Rd2 {[%clk 0:02:06.6]} 35... Rc4 {[%clk 0:05:33.1]} 36.
Qe2 {[%clk 0:02:00]} 36... Bg7 {[%clk 0:05:28.5]} 37. b3 {[%clk 0:02:01.5]}
37... Rc5 {[%clk 0:05:18.5]} 38. Qd3 {[%clk 0:02:02.5]} 38... Bf6 {[%clk
0:05:10.6]} 39. h3 {[%clk 0:01:46.7]} 39... Kg7 {[%clk 0:05:08.1]} 40. Kh2
{[%clk 0:01:46]} 40... Rc3 {[%clk 0:04:53.6]} 41. Qe2 {[%clk 0:01:46.4]} 41...
Qc5 {[%clk 0:04:51.1]} 42. Kh1 {[%clk 0:01:36.4]} 42... Qe3 {[%clk 0:04:23.9]}
43. Ne1 {[%clk 0:01:08.1]} 43... Bg5 {[%clk 0:04:03.6]} 44. Nf3 {[%clk 0:00:57]}
44... Bf4 {[%clk 0:03:58.5]} 45. Qb5 {[%clk 0:00:40.7]} 45... Qxe4 {[%clk
0:03:48.2]} 46. Re2 {[%clk 0:00:42.1]} 46... Qf5 {[%clk 0:03:42.1]} 47. Nxe5
{[%clk 0:00:22.2]} 47... Rxc2 {[%clk 0:03:23.6]} 48. Re1 {[%clk 0:00:15.8]}
48... Bg3 {[%clk 0:03:15.4]} 49. Rf1 {[%clk 0:00:09.9]} 49... Qxe5 {[%clk
0:03:14]} 50. Qd7 {[%clk 0:00:05.6]} 50... Qf4 {[%clk 0:03:05]} 51. Qd3 {[%clk
0:00:03.3]} 51... Rc1 {[%clk 0:03:01.8]} 0-1

[Event "GrandPrix_30.05"]
[Site "Chess.com"]
[Date "2020.05.30"]
[Round "7"]
[White "MAS_1704"]
[Black "esskeettit"]
[Result "1-0"]
[WhiteElo "2082"]
[BlackElo "2063"]
[TimeControl "600+2"]
[EndTime "11:26:45 PDT"]
[Termination "MAS_1704 won by resignation"]

1. d4 {[%clk 0:10:01.9]} 1... Nf6 {[%clk 0:09:53.1]} 2. Nf3 {[%clk 0:10:00.5]}
2... e6 {[%clk 0:09:53.2]} 3. Bf4 {[%clk 0:09:58.8]} 3... d5 {[%clk 0:09:53.5]}
4. e3 {[%clk 0:09:57.2]} 4... c5 {[%clk 0:09:53.7]} 5. c3 {[%clk 0:09:55.7]}
5... Nc6 {[%clk 0:09:54.3]} 6. Nbd2 {[%clk 0:09:54.6]} 6... Bd6 {[%clk
0:09:54.9]} 7. Bg3 {[%clk 0:09:48.3]} 7... O-O {[%clk 0:09:55.4]} 8. Bd3 {[%clk
0:09:47.5]} 8... b6 {[%clk 0:09:55.9]} 9. Ne5 {[%clk 0:09:45.6]} 9... Bb7 {[%clk
0:09:55.8]} 10. f4 {[%clk 0:09:39.8]} 10... Ne7 {[%clk 0:09:54.9]} 11. Bh4
{[%clk 0:09:32.6]} 11... Ne4 {[%clk 0:09:55.1]} 12. Nxe4 {[%clk 0:08:47.6]}
12... dxe4 {[%clk 0:09:53.9]} 13. Bc4 {[%clk 0:08:28.4]} 13... Qc7 {[%clk
0:09:40.8]} 14. Qe2 {[%clk 0:08:28.3]} 14... Bd5 {[%clk 0:09:23.1]} 15. Bb3
{[%clk 0:07:55.6]} 15... f6 {[%clk 0:09:04.4]} 16. Nc4 {[%clk 0:07:54.3]} 16...
Nf5 {[%clk 0:08:42.9]} 17. Bf2 {[%clk 0:07:51.4]} 17... Be7 {[%clk 0:08:43.3]}
18. Nd2 {[%clk 0:07:39.6]} 18... Nd6 {[%clk 0:08:31.4]} 19. O-O {[%clk
0:07:23.5]} 19... Rfd8 {[%clk 0:08:04.3]} 20. Rac1 {[%clk 0:07:18.9]} 20... Rac8
{[%clk 0:08:02.8]} 21. g4 {[%clk 0:06:35.1]} 21... Qb7 {[%clk 0:07:39.4]} 22.
Bg3 {[%clk 0:06:22.1]} 22... Nf7 {[%clk 0:07:03.6]} 23. f5 {[%clk 0:05:41.2]}
23... exf5 {[%clk 0:06:57.3]} 24. c4 {[%clk 0:05:24.5]} 24... Bc6 {[%clk
0:06:11.1]} 25. d5 {[%clk 0:05:22.1]} 25... Bd7 {[%clk 0:06:12.2]} 26. gxf5
{[%clk 0:05:21.3]} 26... Bd6 {[%clk 0:06:12.6]} 27. Nxe4 {[%clk 0:05:13.8]}
27... Bxg3 {[%clk 0:06:13.1]} 28. Nxg3 {[%clk 0:05:13.8]} 28... Re8 {[%clk
0:06:11.9]} 29. e4 {[%clk 0:05:11.2]} 29... Re5 {[%clk 0:06:10.8]} 30. Qg2
{[%clk 0:05:06.9]} 30... Nd6 {[%clk 0:05:59.1]} 31. Nh5 {[%clk 0:04:58.7]} 31...
Be8 {[%clk 0:05:47.6]} 32. Nxf6+ {[%clk 0:04:58.2]} 32... Kh8 {[%clk 0:05:48.4]}
33. Ng4 {[%clk 0:02:39.7]} 33... Rxe4 {[%clk 0:05:46.7]} 34. Qg3 {[%clk
0:02:25.3]} 34... Bh5 {[%clk 0:05:34.3]} 35. Qxd6 {[%clk 0:02:13.3]} 35... Rxg4+
{[%clk 0:05:32.9]} 36. Kh1 {[%clk 0:02:13.7]} 36... Qf7 {[%clk 0:05:02.8]} 37.
Qe6 {[%clk 0:02:02.6]} 37... Re8 {[%clk 0:05:02.4]} 38. Qxf7 {[%clk 0:01:59.5]}
38... Bxf7 {[%clk 0:05:04.3]} 39. Rce1 {[%clk 0:02:00.4]} 39... Rf8 {[%clk
0:05:04.9]} 40. h3 {[%clk 0:01:48.6]} 40... Rg5 {[%clk 0:05:03.4]} 41. f6 {[%clk
0:01:40.4]} 41... gxf6 {[%clk 0:04:52.9]} 42. Re7 {[%clk 0:01:35.1]} 42... Bg6
{[%clk 0:04:35.6]} 43. d6 {[%clk 0:01:28.7]} 43... Rg3 {[%clk 0:04:08]} 44. d7
{[%clk 0:01:07.8]} 44... Rxh3+ {[%clk 0:04:07.5]} 45. Kg2 {[%clk 0:01:08.3]}
45... Rh5 {[%clk 0:03:36]} 46. Rd1 {[%clk 0:00:51.5]} 46... Rd8 {[%clk
0:03:33.2]} 47. Ba4 {[%clk 0:00:51.8]} 47... Re5 {[%clk 0:03:28.3]} 48. Re1
{[%clk 0:00:51.1]} 48... Rxe1 {[%clk 0:02:45.5]} 49. Rxe1 {[%clk 0:00:50.5]}
49... Kg7 {[%clk 0:02:47.4]} 50. Re8 {[%clk 0:00:50.6]} 50... Bxe8 {[%clk
0:02:45.5]} 51. dxe8=Q {[%clk 0:00:50]} 51... Rxe8 {[%clk 0:02:47.4]} 52. Bxe8
{[%clk 0:00:50.4]} 52... f5 {[%clk 0:02:48.1]} 53. Kf3 {[%clk 0:00:50.1]} 53...
Kf6 {[%clk 0:02:50]} 54. Kf4 {[%clk 0:00:51.1]} 54... Ke7 {[%clk 0:02:49.7]} 55.
Bh5 {[%clk 0:00:50.4]} 55... a6 {[%clk 0:02:49]} 56. Kxf5 {[%clk 0:00:47.7]}
56... b5 {[%clk 0:02:50.9]} 57. Ke5 {[%clk 0:00:44.2]} 57... bxc4 {[%clk
0:02:52.8]} 58. Kd5 {[%clk 0:00:44.3]} 58... Kd7 {[%clk 0:02:53.7]} 59. Kxc5
{[%clk 0:00:44.4]} 59... Kc7 {[%clk 0:02:55.6]} 1-0

[Event "GrandPrix_30.05"]
[Site "Chess.com"]
[Date "2020.05.30"]
[Round "7"]
[White "IwkooO"]
[Black "Pash2015"]
[Result "0-1"]
[WhiteElo "2315"]
[BlackElo "2237"]
[TimeControl "600+2"]
[EndTime "11:26:47 PDT"]
[Termination "Pash2015 won by resignation"]

1. e4 {[%clk 0:10:01.9]} 1... c5 {[%clk 0:09:59.3]} 2. Nf3 {[%clk 0:10:01.6]}
2... a6 {[%clk 0:10:00.3]} 3. c4 {[%clk 0:09:59.5]} 3... Nc6 {[%clk 0:10:00.5]}
4. d4 {[%clk 0:10:00.4]} 4... cxd4 {[%clk 0:10:02.4]} 5. Nxd4 {[%clk 0:10:02]}
5... e5 {[%clk 0:10:01.8]} 6. Nf5 {[%clk 0:09:40.9]} 6... d6 {[%clk 0:10:01.6]}
7. Ne3 {[%clk 0:09:33.1]} 7... Nf6 {[%clk 0:10:02.5]} 8. Nc3 {[%clk 0:09:34]}
8... Be7 {[%clk 0:10:02.2]} 9. Be2 {[%clk 0:09:26.5]} 9... O-O {[%clk
0:10:03.4]} 10. O-O {[%clk 0:09:27.5]} 10... Be6 {[%clk 0:10:02.9]} 11. Ned5
{[%clk 0:09:28.2]} 11... Bxd5 {[%clk 0:10:01]} 12. cxd5 {[%clk 0:09:25.4]} 12...
Nd4 {[%clk 0:10:01.8]} 13. Be3 {[%clk 0:09:26.6]} 13... Nxe2+ {[%clk 0:09:59.5]}
14. Qxe2 {[%clk 0:09:27.5]} 14... Rc8 {[%clk 0:10:01.4]} 15. a4 {[%clk 0:09:23]}
15... h6 {[%clk 0:09:54.9]} 16. f3 {[%clk 0:09:18.1]} 16... Nd7 {[%clk
0:09:49.9]} 17. a5 {[%clk 0:09:17.6]} 17... Bg5 {[%clk 0:09:47.8]} 18. Bf2
{[%clk 0:09:16.8]} 18... Nc5 {[%clk 0:09:42.8]} 19. Ra3 {[%clk 0:09:13.4]} 19...
Qe7 {[%clk 0:09:31.7]} 20. b4 {[%clk 0:09:11.9]} 20... Nd7 {[%clk 0:09:29.8]}
21. b5 {[%clk 0:09:10.2]} 21... Nc5 {[%clk 0:08:58.6]} 22. Na4 {[%clk
0:09:07.5]} 22... Nxa4 {[%clk 0:08:53.8]} 23. Rxa4 {[%clk 0:09:09.4]} 23... axb5
{[%clk 0:08:55.2]} 24. Qxb5 {[%clk 0:09:09.6]} 24... Rc7 {[%clk 0:08:51.2]} 25.
Rb4 {[%clk 0:09:08.7]} 25... Rfc8 {[%clk 0:08:43.9]} 26. Rb2 {[%clk 0:09:07]}
26... Bc1 {[%clk 0:08:07.8]} 27. Rb3 {[%clk 0:08:50.4]} 27... g6 {[%clk
0:07:55]} 28. g3 {[%clk 0:08:47.6]} 28... h5 {[%clk 0:07:48.2]} 29. Kg2 {[%clk
0:08:46.6]} 29... h4 {[%clk 0:07:46.4]} 30. Re1 {[%clk 0:08:09.2]} 30... Bd2
{[%clk 0:07:32.6]} 31. Re2 {[%clk 0:08:09.4]} 31... Qg5 {[%clk 0:07:29.7]} 32.
Rb2 {[%clk 0:07:47.8]} 32... Bc1 {[%clk 0:06:53.6]} 33. Ra2 {[%clk 0:07:46.6]}
33... hxg3 {[%clk 0:06:46.5]} 34. hxg3 {[%clk 0:07:44.6]} 34... Kg7 {[%clk
0:06:47.9]} 35. Qb6 {[%clk 0:07:37.7]} 35... Rd7 {[%clk 0:06:13]} 36. Rac2
{[%clk 0:07:33]} 36... Rh8 {[%clk 0:06:07.4]} 37. Bg1 {[%clk 0:04:22.5]} 37...
Bf4 {[%clk 0:05:53.5]} 38. Qf2 {[%clk 0:04:05.7]} 38... Rdd8 {[%clk 0:05:36.7]}
39. Rc7 {[%clk 0:03:40.3]} 39... Ra8 {[%clk 0:05:21.4]} 40. Rb2 {[%clk
0:03:34.2]} 40... Rxa5 {[%clk 0:05:09.5]} 41. Rbxb7 {[%clk 0:03:27.1]} 41... Rf8
{[%clk 0:05:09.4]} 42. Bh2 {[%clk 0:03:19.3]} 42... Ra3 {[%clk 0:05:03.9]} 43.
Ra7 {[%clk 0:03:08.9]} 43... Be3 {[%clk 0:04:55.3]} 44. Rxa3 {[%clk 0:02:55.6]}
44... Bxf2 {[%clk 0:04:52.6]} 45. Kxf2 {[%clk 0:02:56.4]} 45... Rb8 {[%clk
0:04:45.1]} 46. Rc2 {[%clk 0:02:53.8]} 46... Rb1 {[%clk 0:04:37.5]} 47. Kg2
{[%clk 0:02:52.9]} 47... Rc1 {[%clk 0:04:26.4]} 48. Raa2 {[%clk 0:02:31.7]}
48... f5 {[%clk 0:04:17.7]} 49. exf5 {[%clk 0:02:00.4]} 49... gxf5 {[%clk
0:04:10.5]} 50. Bg1 {[%clk 0:02:01.6]} 50... e4 {[%clk 0:03:57.7]} 51. Bd4+
{[%clk 0:01:12.8]} 51... Kg6 {[%clk 0:03:44]} 52. Rc6 {[%clk 0:00:56.3]} 52...
exf3+ {[%clk 0:03:32.4]} 53. Kf2 {[%clk 0:00:57.4]} 53... Kh5 {[%clk 0:03:13.8]}
54. Be3 {[%clk 0:00:52]} 54... Rf1+ {[%clk 0:03:10.5]} 55. Kxf1 {[%clk
0:00:51.6]} 55... Qxe3 {[%clk 0:03:10.7]} 56. Ra8 {[%clk 0:00:14]} 56... Qe2+
{[%clk 0:03:07.4]} 0-1

[Event "GrandPrix_30.05"]
[Site "Chess.com"]
[Date "2020.05.30"]
[Round "7"]
[White "zuagroasta"]
[Black "BairaKovanova"]
[Result "0-1"]
[WhiteElo "1932"]
[BlackElo "2153"]
[TimeControl "600+2"]
[EndTime "11:26:54 PDT"]
[Termination "BairaKovanova won by resignation"]

1. d4 {[%clk 0:10:01.4]} 1... Nf6 {[%clk 0:10:00]} 2. Bg5 {[%clk 0:09:48.4]}
2... e6 {[%clk 0:09:59.1]} 3. Nd2 {[%clk 0:09:37.7]} 3... h6 {[%clk 0:09:58.8]}
4. Bh4 {[%clk 0:09:34.9]} 4... Be7 {[%clk 0:09:55.2]} 5. e4 {[%clk 0:09:27.1]}
5... d5 {[%clk 0:09:55.5]} 6. e5 {[%clk 0:09:25.2]} 6... Nfd7 {[%clk 0:09:55.9]}
7. Bxe7 {[%clk 0:08:14.7]} 7... Qxe7 {[%clk 0:09:55]} 8. f4 {[%clk 0:07:56.3]}
8... b6 {[%clk 0:09:54.5]} 9. g3 {[%clk 0:07:43.1]} 9... Bb7 {[%clk 0:09:35.4]}
10. Ngf3 {[%clk 0:07:37.7]} 10... c5 {[%clk 0:09:33.3]} 11. c3 {[%clk
0:07:29.7]} 11... Nc6 {[%clk 0:09:33.8]} 12. Kf2 {[%clk 0:06:59.9]} 12... g5
{[%clk 0:08:38.3]} 13. Bh3 {[%clk 0:06:57.2]} 13... Rg8 {[%clk 0:08:31.7]} 14.
fxg5 {[%clk 0:06:50]} 14... hxg5 {[%clk 0:08:31.5]} 15. Bg4 {[%clk 0:06:16.5]}
15... O-O-O {[%clk 0:07:58.2]} 16. Re1 {[%clk 0:06:13.7]} 16... Kb8 {[%clk
0:06:54.5]} 17. Qa4 {[%clk 0:05:32.2]} 17... Rde8 {[%clk 0:04:26.8]} 18. b4
{[%clk 0:04:22.2]} 18... cxb4 {[%clk 0:04:11.1]} 19. c4 {[%clk 0:04:20.7]} 19...
dxc4 {[%clk 0:01:22.5]} 20. Nxc4 {[%clk 0:04:17.3]} 20... Nxd4 {[%clk
0:01:22.8]} 21. Nxd4 {[%clk 0:03:13.6]} 21... Qc5 {[%clk 0:01:22.7]} 22. Qxd7
{[%clk 0:02:33.3]} 22... Rd8 {[%clk 0:01:20.5]} 23. Qb5 {[%clk 0:02:33.2]} 23...
Qxd4+ {[%clk 0:00:44.9]} 24. Ne3 {[%clk 0:02:33.6]} 24... Rh8 {[%clk 0:00:27.3]}
25. h3 {[%clk 0:02:33]} 25... f5 {[%clk 0:00:28.2]} 26. exf6 {[%clk 0:02:29.5]}
26... Qxf6+ {[%clk 0:00:27.8]} 27. Kg1 {[%clk 0:02:29.2]} 27... Rd2 {[%clk
0:00:25.9]} 28. Qf1 {[%clk 0:01:49.7]} 28... Qd4 {[%clk 0:00:22.2]} 29. Rad1
{[%clk 0:01:41.9]} 29... Rxd1 {[%clk 0:00:21.6]} 30. Bxd1 {[%clk 0:01:41.9]}
30... g4 {[%clk 0:00:16.5]} 31. Bxg4 {[%clk 0:01:40.1]} 31... Rd8 {[%clk
0:00:14.2]} 32. Qf4+ {[%clk 0:01:39.8]} 32... e5 {[%clk 0:00:12.4]} 33. Qe4
{[%clk 0:01:38.9]} 33... Qxe4 {[%clk 0:00:11.6]} 0-1